fUST/lending_fUST_20250624
["ID","MTS","AMOUNT","RATE_DAILY","PERIOD"]
[367364393,1750767039589,-460.0,0.00019178,2]
[367364394,1750767039598,-3537.56,0.00019178,2]
[367364395,1750767039608,-1451.15,0.00019178,2]
[367364396,1750767039617,-714.4,0.00019178,2]
[367364397,1750767039626,-2386.7,0.00019178,2]
[367364398,1750767039635,-861.21,0.00019178,2]
[367364399,1750767039644,-741.09,0.00019178,2]
[367364400,1750767039653,-460.0,0.00019178,2]
[367364401,1750767039662,-460.0,0.00019178,2]
[367364402,1750767039671,-569.55,0.00019178,2]
[367364403,1750767039680,-460.0,0.00019178,2]
[367364404,1750767039689,-802.96,0.00019178,2]
[367364405,1750767039698,-460.0,0.00019178,2]
[367364406,1750767039707,-460.0,0.00019178,2]
[367364407,1750767039716,-460.0,0.00019178,2]
[367364408,1750767039725,-580.26,0.00019178,2]
[367364409,1750767039734,-460.0,0.00019178,2]
[367364410,1750767039743,-741.73,0.00019178,2]
[367364411,1750767039753,-460.0,0.00019178,2]
[367364412,1750767039764,-2225.91,0.00019178,2]
[367364413,1750767039773,-460.0,0.00019178,2]
[367364414,1750767039782,-460.0,0.00019178,2]
[367364415,1750767039793,-460.0,0.00019178,2]
[367364416,1750767039802,-2241.16,0.00019178,2]
[367364417,1750767039812,-913.7,0.00019178,2]
[367364418,1750767039822,-2156.98,0.00019178,2]
[367364419,1750767039832,-460.0,0.00019178,2]
[367364420,1750767039841,-460.0,0.00019178,2]
[367364421,1750767039850,-460.0,0.00019178,2]
[367364422,1750767039859,-460.0,0.00019178,2]
[367364423,1750767039869,-920.52,0.00019178,2]
[367364424,1750767039878,-176.146606,0.00019178,2]
[367364425,1750767039887,-445.29749694,0.00019386,2]
[367364426,1750767039896,-489.28,0.00019442,3]
[367364427,1750767039906,-244.64,0.00019442,3]
[367364428,1750767039916,-733.92,0.00019442,3]
[367364429,1750767039926,-235.88377804,0.00019452,2]
[367364430,1750767039935,-460.0,0.00019452,2]
[367364431,1750767039944,-460.0,0.00019452,2]
[367364432,1750767039954,-460.0,0.00019452,2]
[367364433,1750767039963,-669.19,0.00019452,2]
[367364434,1750767039972,-460.0,0.00019452,2]
[367364435,1750767039982,-460.0,0.00019452,2]
[367364436,1750767039991,-628.33,0.00019452,2]
[367364437,1750767040000,-460.0,0.00019452,2]
[367364438,1750767040010,-507.05,0.00019452,2]
[367364439,1750767040019,-460.0,0.00019452,2]
[367364440,1750767040029,-460.0,0.00019452,2]
[367364441,1750767040038,-460.0,0.00019452,2]
[367364442,1750767040048,-460.0,0.00019452,2]
[367364443,1750767040165,-460.0,0.00019452,2]
[367364444,1750767040175,-460.0,0.00019452,2]
[367364445,1750767040185,-335.52,0.00019452,2]
[367364446,1750767040194,-460.0,0.00019452,2]
[367364447,1750767040204,-947.56,0.00019452,2]
[367364448,1750767040213,-460.0,0.00019452,2]
[367364449,1750767040222,-460.0,0.00019452,2]
[367364450,1750767040231,-460.0,0.00019452,2]
[367364451,1750767040240,-320.85269026,0.00019452,2]
[367364452,1750767040249,-513.34,0.00019452,2]
[367364453,1750767040258,-460.0,0.00019452,2]
[367364454,1750767040267,-460.0,0.00019452,2]
[367364455,1750767040276,-648.97,0.00019452,2]
[367364456,1750767040285,-460.0,0.00019452,2]
[367364457,1750767040296,-460.0,0.00019452,2]
[367364458,1750767040305,-460.0,0.00019452,2]
[367364459,1750767040314,-460.0,0.00019452,2]
[367364460,1750767040323,-460.0,0.00019452,2]
[367364461,1750767040332,-460.0,0.00019452,2]
[367364462,1750767040342,-460.0,0.00019452,2]
[367364463,1750767040353,-378.54,0.00019452,2]
[367364464,1750767040362,-2264.98,0.00019452,2]
[367364465,1750767040372,-460.0,0.00019452,2]
[367364466,1750767040382,-460.0,0.00019452,2]
[367364467,1750767040391,-361.65,0.00019452,2]
[367364468,1750767040400,-2363.83,0.00019452,2]
[367364469,1750767040410,-634.24,0.00019452,2]
[367364470,1750767040419,-699.86,0.00019452,2]
[367364471,1750767040429,-460.0,0.00019452,2]
[367364472,1750767040439,-460.0,0.00019452,2]
[367364473,1750767040448,-829.66,0.00019452,2]
[367364474,1750767040458,-460.0,0.00019452,2]
[367364475,1750767040470,-460.0,0.00019452,2]
[367364476,1750767040479,-460.0,0.00019452,2]
[367364477,1750767040488,-460.0,0.00019452,2]
[367364478,1750767040498,-460.0,0.00019452,2]
[367364479,1750767040507,-460.0,0.00019452,2]
[367364480,1750767040518,-460.0,0.00019452,2]
[367364481,1750767040528,-1988.0,0.00019452,2]
[367364482,1750767040537,-460.0,0.00019452,2]
[367364483,1750767040549,-460.0,0.00019452,2]
[367364484,1750767040558,-460.0,0.00019452,2]
[367364485,1750767040568,-1698.8,0.00019452,2]
[367364486,1750767040578,-460.0,0.00019452,2]
[367364487,1750767040587,-460.0,0.00019452,2]
[367364488,1750767040596,-460.0,0.00019452,2]
[367364489,1750767040606,-2018.58,0.00019452,2]
[367364490,1750767040615,-460.0,0.00019452,2]
[367364491,1750767040624,-460.0,0.00019452,2]
[367364492,1750767040634,-617.23,0.00019452,2]
[367364493,1750767040643,-460.0,0.00019452,2]
[367364494,1750767040654,-1386.61,0.00019452,2]
[367364495,1750767040664,-3020.43,0.00019452,2]
[367364496,1750767040674,-460.0,0.00019452,2]
[367364497,1750767040683,-1055.0,0.00019452,2]
[367364498,1750767040694,-1776.16,0.00019452,2]
[367364499,1750767040864,-460.0,0.00019452,2]
[367364500,1750767040874,-460.0,0.00019452,2]
[367364501,1750767040883,-460.0,0.00019452,2]
[367364502,1750767040892,-460.0,0.00019452,2]
[367364503,1750767040902,-672.87,0.00019452,2]
[367364504,1750767040911,-460.0,0.00019452,2]
[367364505,1750767040920,-697.85,0.00019452,2]
[367364506,1750767040929,-4790.5,0.00019452,2]
[367364507,1750767040938,-460.0,0.00019452,2]
[367364508,1750767040948,-460.0,0.00019452,2]
[367364509,1750767040957,-1260.36,0.00019452,2]
[367364510,1750767040967,-833.77,0.00019452,2]
[367364511,1750767040978,-460.0,0.00019452,2]
[367364512,1750767040987,-460.0,0.00019452,2]
[367364513,1750767040996,-460.0,0.00019452,2]
[367364514,1750767041006,-609.9,0.00019452,2]
[367364515,1750767041015,-460.0,0.00019452,2]
[367364516,1750767041024,-460.0,0.00019452,2]
[367364517,1750767041034,-1343.55,0.00019452,2]
[367364518,1750767041043,-460.0,0.00019452,2]
[367364519,1750767041052,-566.86,0.00019452,2]
[367364520,1750767041061,-619.41,0.00019452,2]
[367364521,1750767041071,-460.0,0.00019452,2]
[367364522,1750767041080,-460.0,0.00019452,2]
[367364523,1750767041089,-3537.56,0.00019452,2]
[367364524,1750767041098,-1451.15,0.00019452,2]
[367364525,1750767041108,-714.4,0.00019452,2]
[367364526,1750767041118,-2386.7,0.00019452,2]
[367364527,1750767041127,-861.21,0.00019452,2]
[367364528,1750767041136,-741.09,0.00019452,2]
[367364529,1750767041145,-460.0,0.00019452,2]
[367364530,1750767041155,-271.73,0.00019452,2]
[367364531,1750767041166,-569.55,0.00019452,2]
[367364532,1750767041176,-802.96,0.00019452,2]
[367364533,1750767041186,-460.0,0.00019452,2]
[367364534,1750767041195,-460.0,0.00019452,2]
[367364535,1750767041206,-580.26,0.00019452,2]
[367364536,1750767041215,-460.0,0.00019452,2]
[367364537,1750767041225,-741.73,0.00019452,2]
[367364538,1750767041235,-2225.91,0.00019452,2]
[367364539,1750767041245,-460.0,0.00019452,2]
[367364540,1750767041255,-460.0,0.00019452,2]
[367364541,1750767041264,-460.0,0.00019452,2]
[367364542,1750767041273,-2241.16,0.00019452,2]
[367364543,1750767041283,-913.7,0.00019452,2]
[367364544,1750767041294,-2156.98,0.00019452,2]
[367364545,1750767041303,-460.0,0.00019452,2]
[367364546,1750767041313,-242.12,0.00019452,2]
[367364547,1750767041322,-920.52,0.00019452,2]
[367364548,1750767041331,-168.0,0.00019574,2]
[367364549,1750767041340,-168.0,0.0001959,2]
[367364550,1750767041351,-156.36377622,0.00019726,2]
[367364551,1750767041361,-460.0,0.00019726,2]
[367364552,1750767041370,-669.19,0.00019726,2]
[367364553,1750767041380,-460.0,0.00019726,2]
[367364554,1750767041391,-460.0,0.00019726,2]
[367364555,1750767041400,-628.33,0.00019726,2]
[367364556,1750767041410,-460.0,0.00019726,2]
[367364557,1750767041420,-507.05,0.00019726,2]
[367364558,1750767041431,-460.0,0.00019726,2]
[367364559,1750767041440,-460.0,0.00019726,2]
[367364560,1750767041449,-460.0,0.00019726,2]
[367364561,1750767041459,-505.75,0.00019726,2]
[367364562,1750767041467,-460.0,0.00019726,2]
[367364563,1750767041477,-947.56,0.00019726,2]
[367364564,1750767041486,-460.0,0.00019726,2]
[367364565,1750767041495,-460.0,0.00019726,2]
[367364566,1750767041504,-460.0,0.00019726,2]
[367364567,1750767041513,-513.34,0.00019726,2]
[367364568,1750767041522,-460.0,0.00019726,2]
[367364569,1750767041532,-460.0,0.00019726,2]
[367364570,1750767041542,-648.97,0.00019726,2]
[367364571,1750767041551,-460.0,0.00019726,2]
[367364572,1750767041560,-460.0,0.00019726,2]
[367364573,1750767041568,-472.03,0.00019726,2]
[367364574,1750767041577,-526.56349348,0.00019726,2]
[367364575,1750767041585,-460.0,0.00019726,2]
[367364576,1750767041594,-460.0,0.00019726,2]
[367364577,1750767041604,-2264.98,0.00019726,2]
[367364578,1750767041612,-460.0,0.00019726,2]
[367364579,1750767041622,-460.0,0.00019726,2]
[367364580,1750767041631,-2363.83,0.00019726,2]
[367364581,1750767041639,-634.24,0.00019726,2]
[367364582,1750767041648,-699.86,0.00019726,2]
[367364583,1750767041658,-415.66000001,0.00019726,2]
[367364584,1750767041667,-460.0,0.00019726,2]
[367364585,1750767041676,-829.66,0.00019726,2]
[367364586,1750767041685,-460.0,0.00019726,2]
[367364587,1750767041694,-460.0,0.00019726,2]
[367364588,1750767041703,-460.0,0.00019726,2]
[367364589,1750767041711,-380.0,0.00019726,2]
[367364590,1750767041721,-460.0,0.00019726,2]
[367364591,1750767041730,-460.0,0.00019726,2]
[367364592,1750767041739,-460.0,0.00019726,2]
[367364593,1750767041748,-1988.0,0.00019726,2]
[367364594,1750767041757,-460.0,0.00019726,2]
[367364595,1750767041767,-460.0,0.00019726,2]
[367364596,1750767041776,-460.0,0.00019726,2]
[367364597,1750767041787,-1698.8,0.00019726,2]
[367364598,1750767041796,-460.0,0.00019726,2]
[367364599,1750767041805,-460.0,0.00019726,2]
[367364600,1750767041815,-2018.58,0.00019726,2]
[367364601,1750767041824,-460.0,0.00019726,2]
[367364602,1750767041834,-460.0,0.00019726,2]
[367364603,1750767041843,-617.23,0.00019726,2]
[367364604,1750767041852,-460.0,0.00019726,2]
[367364605,1750767041861,-1386.61,0.00019726,2]
[367364606,1750767041871,-3020.43,0.00019726,2]
[367364607,1750767041880,-460.0,0.00019726,2]
[367364608,1750767041890,-1055.0,0.00019726,2]
[367364609,1750767041900,-1776.16,0.00019726,2]
[367364610,1750767041909,-460.0,0.00019726,2]
[367364611,1750767041918,-672.87,0.00019726,2]
[367364612,1750767041927,-460.0,0.00019726,2]
[367364613,1750767041937,-697.85,0.00019726,2]
[367364614,1750767041946,-4790.5,0.00019726,2]
[367364615,1750767041956,-460.0,0.00019726,2]
[367364616,1750767041965,-460.0,0.00019726,2]
[367364617,1750767041974,-1260.36,0.00019726,2]
[367364618,1750767041983,-833.77,0.00019726,2]
[367364619,1750767041993,-460.0,0.00019726,2]
[367364620,1750767042002,-609.9,0.00019726,2]
[367364621,1750767042011,-460.0,0.00019726,2]
[367364622,1750767042021,-460.0,0.00019726,2]
[367364623,1750767042030,-1343.55,0.00019726,2]
[367364624,1750767042039,-460.0,0.00019726,2]
[367364625,1750767042048,-566.86,0.00019726,2]
[367364626,1750767042058,-619.41,0.00019726,2]
[367364627,1750767042067,-460.0,0.00019726,2]
[367364628,1750767042077,-3537.56,0.00019726,2]
[367364629,1750767042086,-460.0,0.00019726,2]
[367364630,1750767042096,-1451.15,0.00019726,2]
[367364631,1750767042105,-714.4,0.00019726,2]
[367364632,1750767042115,-2386.7,0.00019726,2]
[367364633,1750767042123,-861.21,0.00019726,2]
[367364634,1750767042132,-741.09,0.00019726,2]
[367364635,1750767042142,-460.0,0.00019726,2]
[367364636,1750767042150,-569.55,0.00019726,2]
[367364637,1750767042159,-802.96,0.00019726,2]
[367364638,1750767042168,-460.0,0.00019726,2]
[367364639,1750767042178,-460.0,0.00019726,2]
[367364640,1750767042187,-580.26,0.00019726,2]
[367364641,1750767042196,-460.0,0.00019726,2]
[367364642,1750767042205,-741.73,0.00019726,2]
[367364643,1750767042216,-2225.91,0.00019726,2]
[367364644,1750767042225,-460.0,0.00019726,2]
[367364645,1750767042235,-460.0,0.00019726,2]
[367364646,1750767042244,-460.0,0.00019726,2]
[367364647,1750767042254,-2241.16,0.00019726,2]
[367364648,1750767042264,-913.7,0.00019726,2]
[367364649,1750767042273,-2156.98,0.00019726,2]
[367364650,1750767042282,-460.0,0.00019726,2]
[367364651,1750767042291,-920.52,0.00019726,2]
[367364652,1750767042301,-177.3826656,0.000198,2]
[367364653,1750767042310,-306.0,0.000198,2]
[367364654,1750767042319,-153.0,0.00019836,2]
[367364655,1750767042329,-168.0,0.00019851,2]
[367364656,1750767042338,-1527.907814,0.00019863,2]
[367364657,1750767042349,-151.0,0.0001989,2]
[367364658,1750767042360,-153.0,0.0001989,2]
[367364659,1750767042369,-153.0,0.0001989,2]
[367364660,1750767042378,-275.3120225,0.0001989,2]
[367364661,1750767042387,-153.0,0.0001989,2]
[367364662,1750767042398,-153.0,0.0001989,2]
[367364663,1750767042407,-544.99325607,0.00019891,2]
[367364664,1750767042416,-496.52073945,0.000199,2]
[367364665,1750767042425,-574.8597778,0.000199,2]
[367364666,1750767042435,-574.8597778,0.000199,2]
[367364667,1750767042444,-574.8597778,0.000199,2]
[367364668,1750767042454,-211.2069158,0.000199,2]
[367364669,1750767042463,-574.8597778,0.000199,2]
[367364670,1750767042472,-159.1692736,0.000199,2]
[367364671,1750767042481,-574.8597778,0.000199,2]
[367364672,1750767042490,-159.1692736,0.000199,2]
[367364673,1750767042499,-957.8748336,0.000199,2]
[367364674,1750767042508,-159.1692736,0.000199,2]
[367364675,1750767042518,-159.1692736,0.000199,2]
[367364676,1750767042527,-190.7108293,0.000199,2]
[367364677,1750767042536,-318.1289427,0.000199,2]
[367364678,1750767042546,-177.3826656,0.000199,2]
[367364679,1750767042554,-177.3826656,0.000199,2]
[367364680,1750767042563,-177.3826656,0.000199,2]
[367364681,1750767042572,-573.8932911,0.00019981,2]
[367364682,1750767042581,-5000.0,0.00019988,2]
[367364683,1750767042590,-557.77263048,0.00019988,2]
[367364684,1750767042599,-460.0,0.0002,2]
[367364685,1750767042608,-6857.0,0.0002,2]
[367364686,1750767042617,-669.19,0.0002,2]
[367364687,1750767042626,-3575.0,0.0002,2]
[367364688,1750767042635,-460.0,0.0002,2]
[367364689,1750767042644,-460.0,0.0002,2]
[367364690,1750767042654,-628.33,0.0002,2]
[367364691,1750767042663,-507.05,0.0002,2]
[367364692,1750767042672,-460.0,0.0002,2]
[367364693,1750767042681,-460.0,0.0002,2]
[367364694,1750767042690,-460.0,0.0002,2]
[367364695,1750767042699,-373.11803782,0.0002,2]
[367364696,1750767042708,-947.56,0.0002,2]
[367364697,1750767042717,-460.0,0.0002,2]
[367364698,1750767042726,-460.0,0.0002,2]
[367364699,1750767042735,-460.0,0.0002,2]
[367364700,1750767042744,-152.4627174,0.0002,2]
[367364701,1750767042753,-513.34,0.0002,2]
[367364702,1750767042762,-340.97,0.0002,2]
[367364703,1750767042771,-426.1299034,0.0002,2]
[367364704,1750767042780,-648.97,0.0002,2]
[367364705,1750767042789,-460.0,0.0002,2]
[367364706,1750767042799,-460.0,0.0002,2]
[367364707,1750767042808,-460.0,0.0002,2]
[367364708,1750767042817,-460.0,0.0002,2]
[367364709,1750767042827,-2264.98,0.0002,2]
[367364710,1750767042836,-460.0,0.0002,2]
[367364711,1750767042846,-460.0,0.0002,2]
[367364712,1750767042855,-36359.19400879,0.0002,2]
[367364713,1750767042864,-2363.83,0.0002,2]
[367364714,1750767042873,-634.24,0.0002,2]
[367364715,1750767042883,-699.86,0.0002,2]
[367364716,1750767042892,-460.0,0.0002,2]
[367364717,1750767042901,-829.66,0.0002,2]
[367364718,1750767042911,-460.0,0.0002,2]
[367364719,1750767042920,-460.0,0.0002,2]
[367364720,1750767042929,-460.0,0.0002,2]
[367364721,1750767042939,-460.0,0.0002,2]
[367364722,1750767042948,-460.0,0.0002,2]
[367364724,1750767042958,-460.0,0.0002,2]
[367364726,1750767042967,-1988.0,0.0002,2]
[367364728,1750767042976,-460.0,0.0002,2]
[367364730,1750767042985,-460.0,0.0002,2]
[367364732,1750767042994,-439.4951847,0.0002,2]
[367364735,1750767043003,-1698.8,0.0002,2]
[367364737,1750767043013,-460.0,0.0002,2]
[367364738,1750767043022,-460.0,0.0002,2]
[367364740,1750767043031,-2018.58,0.0002,2]
[367364742,1750767043041,-460.0,0.0002,2]
[367364744,1750767043050,-460.0,0.0002,2]
[367364746,1750767043060,-617.23,0.0002,2]
[367364748,1750767043069,-460.0,0.0002,2]
[367364750,1750767043078,-1386.61,0.0002,2]
[367364752,1750767043087,-3020.43,0.0002,2]
[367364754,1750767043097,-460.0,0.0002,2]
[367364756,1750767043106,-1055.0,0.0002,2]
[367364758,1750767043115,-1776.16,0.0002,2]
[367364760,1750767043124,-460.0,0.0002,2]
[367364762,1750767043133,-672.87,0.0002,2]
[367364764,1750767043142,-460.0,0.0002,2]
[367364765,1750767043151,-697.85,0.0002,2]
[367364766,1750767043160,-4790.5,0.0002,2]
[367364767,1750767043169,-460.0,0.0002,2]
[367364768,1750767043178,-460.0,0.0002,2]
[367364769,1750767043188,-1260.36,0.0002,2]
[367364770,1750767043197,-833.77,0.0002,2]
[367364771,1750767043206,-460.0,0.0002,2]
[367364772,1750767043215,-609.9,0.0002,2]
[367364773,1750767043224,-460.0,0.0002,2]
[367364774,1750767043234,-460.0,0.0002,2]
[367364775,1750767043243,-1343.55,0.0002,2]
[367364776,1750767043252,-460.0,0.0002,2]
[367364777,1750767043262,-566.86,0.0002,2]
[367364778,1750767043271,-619.41,0.0002,2]
[367364779,1750767043280,-460.0,0.0002,2]
[367364780,1750767043289,-3537.56,0.0002,2]
[367364781,1750767043298,-356.63996205,0.0002,2]
[367364782,1750767043307,-1451.15,0.0002,2]
[367364784,1750767043316,-714.4,0.0002,2]
[367364785,1750767043326,-2386.7,0.0002,2]
[367364786,1750767043334,-861.21,0.0002,2]
[367364787,1750767043343,-460.0,0.0002,2]
[367364788,1750767043355,-741.09,0.0002,2]
[367364789,1750767043364,-569.55,0.0002,2]
[367364790,1750767043373,-802.96,0.0002,2]
[367364791,1750767043382,-460.0,0.0002,2]
[367364792,1750767043391,-580.26,0.0002,2]
[367364793,1750767043400,-460.0,0.0002,2]
[367364794,1750767043409,-741.73,0.0002,2]
[367364795,1750767043418,-2225.91,0.0002,2]
[367364796,1750767043427,-606.2905178,0.0002,2]
[367364797,1750767043437,-460.0,0.0002,2]
[367364798,1750767043446,-460.0,0.0002,2]
[367364799,1750767043455,-2241.16,0.0002,2]
[367364800,1750767043464,-913.7,0.0002,2]
[367364801,1750767043473,-2156.98,0.0002,2]
[367364802,1750767043482,-460.0,0.0002,2]
[367364803,1750767043491,-920.52,0.0002,2]
[367364804,1750767043501,-500.0,0.00020164,2]
[367364805,1750767043510,-356.851134,0.00020187,2]
[367364806,1750767043520,-800.0,0.0002026,2]
[367364807,1750767043529,-11899.26135986,0.00020269,2]
[367364808,1750767043539,-38225.431175,0.00020269,2]
[367364809,1750767043548,-254.21857432,0.00020269,2]
[367364810,1750767043557,-119642.99743503,0.00020269,2]
[367364816,1750767097099,325.8481796,0.00024657,120]
[367364817,1750767294352,1033.813716,0.00024,30]
[367364818,1750767310526,28663.40807278,0.00019,2]
[367364819,1750767553946,9999.999999,0.00024,120]
[367364820,1750767789009,200.04,0.0001902,2]
[367364823,1750767894261,999.353258,0.00024,30]
[367364824,1750768040639,221.68668004,0.00018601,2]
[367364825,1750768097695,339.008578,0.00013699,2]
[367364869,1750768232089,-160.0,0.00019155,2]
[367364871,1750768232099,-207.4,0.00019166,2]
[367364872,1750768232109,-799.0,0.00019175,2]
[367364876,1750768232118,-300.0,0.00019176,2]
[367364879,1750768232129,-300.0,0.00019176,2]
[367364883,1750768232138,-300.0,0.00019176,2]
[367364885,1750768232149,-500.0,0.00019176,2]
[367364887,1750768232159,-500.0,0.00019176,2]
[367364889,1750768232168,-322.64473493,0.00019176,2]
[367364891,1750768232178,-396.24558192,0.00019177,2]
[367364893,1750768232188,-500.0,0.00019177,2]
[367364895,1750768232197,-500.0,0.00019177,2]
[367364897,1750768232207,-500.0,0.00019177,2]
[367364899,1750768232217,-500.0,0.00019177,2]
[367364901,1750768232226,-500.0,0.00019177,2]
[367364903,1750768232236,-500.0,0.00019177,2]
[367364905,1750768232246,-500.0,0.00019177,2]
[367364907,1750768232255,-295.46415221,0.00019177,2]
[367364909,1750768232264,-500.0,0.00019177,2]
[367364911,1750768232273,-500.0,0.00019177,2]
[367364913,1750768232283,-500.0,0.00019177,2]
[367364915,1750768232292,-450.0,0.00019177,2]
[367364917,1750768232302,-460.0,0.00019178,2]
[367364919,1750768232311,-460.0,0.00019178,2]
[367364921,1750768232320,-460.0,0.00019178,2]
[367364923,1750768232329,-460.0,0.00019178,2]
[367364925,1750768232339,-602.13250172,0.00019178,2]
[367364927,1750768232347,-460.0,0.00019178,2]
[367364929,1750768232356,-460.0,0.00019178,2]
[367364931,1750768232365,-460.0,0.00019178,2]
[367364933,1750768232375,-460.0,0.00019178,2]
[367364935,1750768232387,-170.98678212,0.00019178,2]
[367364938,1750768232400,-460.0,0.00019178,2]
[367364940,1750768232409,-460.0,0.00019178,2]
[367364942,1750768232418,-460.0,0.00019178,2]
[367364944,1750768232427,-460.0,0.00019178,2]
[367364946,1750768232436,-460.0,0.00019178,2]
[367364948,1750768232445,-460.0,0.00019178,2]
[367364950,1750768232454,-460.0,0.00019178,2]
[367364952,1750768232464,-460.0,0.00019178,2]
[367364954,1750768232473,-460.0,0.00019178,2]
[367364956,1750768232482,-460.0,0.00019178,2]
[367364958,1750768232491,-585.54,0.00019178,2]
[367364960,1750768232502,-460.0,0.00019178,2]
[367364962,1750768232511,-212.85,0.00019178,2]
[367364964,1750768232520,-460.0,0.00019178,2]
[367364966,1750768232530,-460.0,0.00019178,2]
[367364968,1750768232539,-491.85,0.00019178,2]
[367364970,1750768232548,-460.0,0.00019178,2]
[367364972,1750768232557,-577.76,0.00019178,2]
[367364974,1750768232565,-460.0,0.00019178,2]
[367364976,1750768232574,-1295.59,0.00019178,2]
[367364978,1750768232583,-460.0,0.00019178,2]
[367364980,1750768232592,-460.0,0.00019178,2]
[367364982,1750768232602,-460.0,0.00019178,2]
[367364984,1750768232611,-460.0,0.00019178,2]
[367364986,1750768232620,-460.0,0.00019178,2]
[367364988,1750768232629,-460.0,0.00019178,2]
[367364990,1750768232639,-460.0,0.00019178,2]
[367364992,1750768232648,-606.2905178,0.00019178,2]
[367364994,1750768232658,-460.0,0.00019178,2]
[367364996,1750768232667,-460.0,0.00019178,2]
[367364998,1750768232677,-460.0,0.00019178,2]
[367365000,1750768232687,-460.0,0.00019178,2]
[367365002,1750768232696,-460.0,0.00019178,2]
[367365004,1750768232706,-460.0,0.00019178,2]
[367365006,1750768232717,-460.0,0.00019178,2]
[367365008,1750768232727,-460.0,0.00019178,2]
[367365010,1750768232737,-460.0,0.00019178,2]
[367365012,1750768232746,-460.0,0.00019178,2]
[367365014,1750768232755,-460.0,0.00019178,2]
[367365016,1750768232765,-460.0,0.00019178,2]
[367365018,1750768232774,-460.0,0.00019178,2]
[367365020,1750768232783,-460.0,0.00019178,2]
[367365022,1750768232793,-460.0,0.00019178,2]
[367365051,1750768232802,-460.0,0.00019178,2]
[367365053,1750768233069,-542.57089775,0.00019178,2]
[367365055,1750768233079,-829.12,0.00019178,2]
[367365057,1750768233089,-460.0,0.00019178,2]
[367365059,1750768233098,-218.80959887,0.00019178,2]
[367365061,1750768233107,-460.0,0.00019178,2]
[367365063,1750768233116,-460.0,0.00019178,2]
[367365065,1750768233127,-460.0,0.00019178,2]
[367365067,1750768233137,-460.0,0.00019178,2]
[367365069,1750768233146,-340.97,0.00019178,2]
[367365071,1750768233156,-460.0,0.00019178,2]
[367365073,1750768233165,-460.28646618,0.00019178,2]
[367365075,1750768233175,-460.0,0.00019178,2]
[367365077,1750768233184,-460.0,0.00019178,2]
[367365079,1750768233194,-460.0,0.00019178,2]
[367365081,1750768233204,-460.0,0.00019178,2]
[367365083,1750768233213,-460.0,0.00019178,2]
[367365085,1750768233222,-460.0,0.00019178,2]
[367365087,1750768233231,-907.36,0.00019178,2]
[367365089,1750768233241,-460.0,0.00019178,2]
[367365091,1750768233251,-587.01,0.00019178,2]